Cogmind - Beta 14 @@@ ROGUE MODE // 2024.11.13 @ 18:01:33 Player: Knjet Result: Destroyed by S-10 Pest with Light Assault Rifle Performance ------------- Evolutions (0) 0 Regions Visited (1) 200 Robots Destroyed (8) 40 Value Destroyed (129) 129 Prototype IDs (0) 0 Alien Tech Used (0) 0 Bonus (0) 0 TOTAL SCORE: 369 Bonus ------- None Cogmind --------- Core Integrity 0/250 Matter 300/300 Energy 100/100 System Corruption 0% Temperature Cool (0) Movement Core (100) Ox1 Location -10/Materials Parts ------- > --- POWER (1) -------- (None) > --- PROPULSION (2) --- (None) > --- UTILITY (2) ------ Small Storage Unit > --- WEAPON (2) ------- (None) > --- INVENTORY (8) ---- Seismic Detector Tractor Beam Peak State ------------ > --- POWER ------------ Light Ion Engine > --- PROPULSION ------- Aluminum Leg Aluminum Leg > --- UTILITY ---------- Small Storage Unit Improved Terrain Scanner > --- WEAPON ----------- EM Pulse Gun Light Assault Rifle > --- INVENTORY -------- Tractor Beam [Rating: 9] Favorites ----------- Power Light Ion Engine Engine Light Ion Engine Propulsion Aluminum Leg Leg Aluminum Leg Utility Small Storage Unit Device Improved Terrain Scanner Storage Small Storage Unit Weapon Light Assault Rifle Energy Gun EM Pulse Gun Ballistic Gun Light Assault Rifle Build | -11 -10 ------- Run | Yrd Mat Slots Evolved . | . . Power . | . . Propulsion . | . . Utility . | . . Weapon . | . . Parts Attached 8 | 8 . Power 1 | 1 . Engine 1 | 1 . Core . | . . Reactor . | . . Propulsion 2 | 2 . Treads . | . . Leg 2 | 2 . Wheel . | . . Hover . | . . Flight . | . . Utility 3 | 3 . Device 2 | 2 . Storage 1 | 1 . Processor . | . . Hackware . | . . Protection . | . . Artifact . | . . Weapon 2 | 2 . Energy Gun 1 | 1 . Energy Cannon . | . . Ballistic Gun 1 | 1 . Ballistic Cannon . | . . Launcher . | . . Special Weapon . | . . Impact Weapon . | . . Slashing Weapon . | . . Piercing Weapon . | . . Special Melee Weapon . | . . Unidentified Prototypes . | . . Parts Lost 3 | . 3 Power . | . . Propulsion 1 | . 1 Utility 1 | . 1 Weapon 1 | . 1 Highest Loss Streak 3 | . 3 To Critical Strikes . | . . Average Slot Usage (%) 86 | . 86 Engine 11 | . 11 Leg 24 | . 24 Device 11 | . 11 Storage 14 | . 14 Energy Gun 12 | . 12 Ballistic Gun 11 | . 11 Peak Build Rating 9 | 9 9 Average Rating 7 | 6 7 On Entrance 4 | . 9 Naked Turns . | . . Heaviest Build 12 | 12 12 Greatest Support 20 | 20 20 Greatest Overweight (x) . | . . Average Overweight (x) . | . . Largest Inventory Capacity 8 | 8 8 Average Capacity 7 | 7 8 Most Carried 2 | 2 2 Average Carried 1 | . 2 Final Capacity 8 | 8 8 Final Carried 2 | 2 2 Class Distribution -------------------- 100% | Mutant Dominant Class ---------------- Mutant | -10/Materials Resources | -11 -10 ----------- Run | Yrd Mat Matter Collected 304 | 289 15 Remotely 74 | 74 . Salvage Created 306 | 188 118 Parts 22 | 13 9 Haulers Intercepted . | . . Recyclers Shooed 1 | . 1 Parts Field Recycled . | . . Retrieved Matter . | . . Parts Self-Destructed . | . . Prevented . | . . Kills | -11 -10 ------- Run | Yrd Mat Combat Hostiles Destroyed 2 | . 2 Guns 1 | . 1 AOE 1 | . 1 Classes Destroyed 5 | 3 2 Worker 2 | 2 . Tunneler 2 | 2 . Recycler 1 | 1 . Watcher 1 | . 1 Grunt 2 | . 2 Best Kill Streak 2 | 2 2 Combat Bots Only 2 | . 2 Max Kills in Single Turn 1 | 1 1 Gunslinging . | . . Exploded 1 | . 1 Melee . | . . Uniques/NPCs Destroyed . | . . Combat | -11 -10 -------- Run | Yrd Mat Hostile Shots Fired 65 | . 65 Missed 14 | . 14 Damage Taken 519 | . 519 Core 258 | . 258 Absorbed by Shields . | . . Core Remaining (%) 100 | 100 . Volleys Fired 28 | 9 19 Largest 2 | 2 2 Hottest 60 | 60 60 Shots Fired 52 | 18 34 Gun 52 | 18 34 Cannon . | . . Launcher . | . . Special . | . . Kinetic 24 | 9 15 Thermal . | . . Explosive . | . . Electromagnetic 28 | 9 19 Robot Hit Streak 6 | 5 6 Robot Miss Streak 4 | 1 4 Penetration Max . | . . Secondary Targets . | . . Shots Hit Robots 31 | 13 18 Core Hits 13 | 7 6 Critical Kills . | . . Critical Parts Destroyed . | . . Critical Strikes . | . . Melee Attacks . | . . Impact . | . . Slashing . | . . Piercing . | . . Sneak Attacks . | . . Combat Hostiles . | . . Follow-up Attacks . | . . Damage Inflicted 413 | 153 260 Guns 344 | 153 191 Cannons . | . . Explosions 57 | . 57 Melee . | . . Ramming 12 | . 12 Kinetic 116 | 41 75 Thermal 57 | . 57 Explosive . | . . Electromagnetic 228 | 112 116 Impact . | . . Slashing . | . . Piercing . | . . Highest Corruption . | . . Average Corruption . | . . Corruption Purged . | . . Corruption Blocked . | . . Overload Shots . | . . Overflow Damage . | . . Projectiles . | . . Explosions . | . . Melee . | . . Knockbacks . | . . Impact . | . . Kinetic . | . . Secondary . | . . Self-Inflicted Damage 21 | . 21 Shots 1 | . 1 Rammed . | . . Targets Rammed 7 | . 7 Kicked 7 | . 7 Crushed . | . . Highest Temperature 186 | 40 186 Average Temperature 64 | 19 83 Received Heat Transfer 147 | . 147 Siege Activations . | . . Robots Corrupted . | . . Combat Hostiles . | . . Parts Fried . | . . Impact Corruptions . | . . Robots Melted . | . . Combat Hostiles . | . . Parts Melted . | . . Heat Transferred 100 | . 100 Parts Sabotaged . | . . Parts Stolen . | . . Parts Stripped . | . . Power Chain Reactions 1 | . 1 Alert | -11 -10 ------- Run | Yrd Mat Peak Influence 107 | 25 107 Initial 16 | . 16 Average 51 | 7 79 Maximum Alert Level . | . . Low Security (%) 100 | 100 100 Level 1 . | . . Level 2 . | . . Level 3 . | . . Level 4 . | . . Level 5 . | . . High Security . | . . Max Security . | . . Squads Dispatched . | . . Investigation . | . . Extermination . | . . Reinforcement . | . . Assault . | . . Garrison . | . . Intercept . | . . Searches Triggered . | . . Construction Impeded . | . . Haulers Reinforced . | . . Active Scanning Responses . | . . Cargo Convoy Interrupts . | . . Stealth | -11 -10 --------- Run | Yrd Mat Distress Signals 1 | . 1 Communications Jammed . | . . Distress Signals . | . . Times Spotted 7 | . 7 Peak Tracking Total 4 | . 4 Tactical Retreats . | . . Traps | -11 -10 ------- Run | Yrd Mat Traps Triggered 1 | . 1 Indirectly . | . . Trap Hack Attempts . | . . Triggered . | . . Disarmed . | . . Reprogrammed . | . . Reused . | . . Traps Extracted . | . . Installed . | . . Triggered . | . . Machines | -11 -10 ---------- Run | Yrd Mat Machines Disabled 1 | . 1 Max in Single Turn 1 | . 1 Machines Repaired . | . . Machines Dismantled . | . . Machines Sabotaged . | . . Overloaded Fab Kills . | . . Hacking | -11 -10 --------- Run | Yrd Mat Machines Accessed . | . . Terminals . | . . Fabricators . | . . Repair Stations . | . . Recycling Units . | . . Scanalyzers . | . . Garrison Access . | . . Total Hacks . | . . Successful . | . . Failed . | . . Catastrophic . | . . Database Lockouts . | . . Manual . | . . Terminals . | . . Fabricators . | . . Repair Stations . | . . Recycling Units . | . . Scanalyzers . | . . Garrison Access . | . . Terminal Hacks . | . . Fabricator Hacks . | . . Repair Station Hacks . | . . Recycling Unit Hacks . | . . Scanalyzer . | . . Garrison Access Hacks . | . . Unauthorized Hacks . | . . Terminals . | . . Fabricators . | . . Repair Stations . | . . Recycling Units . | . . Scanalyzers . | . . Garrison Access . | . . Data Cores Recovered . | . . Used . | . . Hacking Detections . | . . Full Trace Events . | . . Feedback Events . | . . Feedback Blocked . | . . Robot Schematics Acquired . | . . Robots Built . | . . Authchips . | . . Time . | . . Total Robot Build Rating . | . . Part Schematics Acquired . | . . Parts Built . | . . Authchips . | . . Time . | . . Total Part Build Rating . | . . Parts Repaired . | . . Time . | . . Parts Recycled . | . . Recycled Matter . | . . Retrieved Matter . | . . Retrieved Components . | . . Parts Scanalyzed . | . . Part Schematics Acquired . | . . Parts Damaged . | . . Bothacking | -11 -10 ------------ Run | Yrd Mat Used RIF Installer . | . . Robots Hacked . | . . Non-combat . | . . Combat . | . . Robot Hacks Applied . | . . Relay Couplers Released . | . . Fabnet Peak Effective % . | . . Robots Rewired . | . . Allies Hacked . | . . Hacks Repelled . | . . Allies | -11 -10 -------- Run | Yrd Mat Total Allies . | . . Largest Group . | . . Highest-Rated Group . | . . Highest-Rated Ally . | . . Total Orders . | . . Ally Attacks . | . . Total Damage . | . . Kills . | . . Allies Corrupted . | . . Allies Melted . | . . Intel | -11 -10 ------- Run | Yrd Mat Robot Analysis Total . | . . Derelict Logs Recovered . | . . Drone Launches . | . . Drone Recoveries . | . . Exploration | -11 -10 ------------- Run | Yrd Mat Turns Passed 314 | 123 191 Spaces Moved 176 | 84 92 Core 23 | 23 . Treads . | . . Legs 153 | 61 92 Wheels . | . . Hover . | . . Flight . | . . Fastest Speed 50 | 50 120 Average Speed 110 | 100 120 Slowest Speed 120 | 120 120 Overloaded Moves . | . . Propulsion Burnouts . | . . Robots Hopped . | . . Cave-ins Triggered . | . . Exploration Rate (%) 12 | 4 21 Regions Visited 1 Branch Regions . Pre-discovered Areas . | . . Known Exits Taken . | . . Unknown Exits Taken 1 | 1 . Scrap Searched . | . . Spaces Dug . | . . Terrain Destroyed 3 | . 3 Melee . | . . Projectile . | . . AOE 3 | . 3 Terrain Rammed . | . . Walls Destroyed . | . . Machines Disabled . | . . Actions | -11 -10 --------- Run | Yrd Mat Total 243 | 102 141 Wait 23 | . 23 Move 175 | 83 92 Hop . | . . Pick Up 1 | 1 . Fast Attach 8 | 8 . Attach . | . . Detach 1 | 1 . Swap . | . . Drop . | . . Fire 28 | 9 19 Melee . | . . Ram . | . . Kick 7 | . 7 Crush . | . . Escape Stasis . | . . Rewire . | . . Trap . | . . Miscellaneous . | . . Route ------- -11/Scrapyard -10/Materials History --------- Turn | Location | Event 5 | -11/Scrapyard | Discovered new exit (range 15) 124 | -11/Scrapyard | Entered Materials 298 | -10/Materials | Core integrity fell below 50% 311 | -10/Materials | Core integrity fell below 20% 315 | -10/Materials | Build established: Mutant 315 | -10/Materials | Destroyed by S-10 Pest with Light Assault Rifle Last Messages --------------- 00286_ Imp. Terrain Scanner destroyed. 00290_ EM Pulse Gun destroyed. 00291_ Kicked S-10 Pest. 00293_ Kicked S-10 Pest out of the way. 00294_ M-13 Machinist repairs T-07 Excavator. 00294_ Kicked S-10 Pest. 00302_ Aluminum Leg destroyed. 00303_ K-01 Serf cleans the Recycling Unit. 00305_ R-06 Scavenger inserts Corrupted Aluminum Leg into recycling unit. 00306_ K-01 Serf cleans the Recycling Unit. 00307_ T-07 Excavator is excavating. 00308_ R-06 Scavenger inserts Aluminum Leg into recycling unit. 00311_ T-07 Excavator is excavating. 00311_ R-06 Scavenger inserts Corrupted Aluminum Leg into recycling unit. 00313_ K-01 Serf collects debris. 00314_ R-06 Scavenger inserts Lgt. Assault Rifle into recycling unit. Map ----- +----------------------------------------------------+ | | | | | | | | | ??????????#????????#############?????????????????? | | ????????????######## """"" #?#???????????????? | | ????????????# # """"" ##???#????????????? | | ??????###?#?# ! # """"" #???????#?????????? | | ???#????????# # ###???????????????? | | ????????????# """ # #???????????#?????? | | ?????????#??#! " [# #?????????????????? | | ????????????# " !%" #?????????????????? | | ???????###########+######+##########???????#?????? | | ????#??# = # #?????????????? | | ???#???# = # #???????#?????# | | ???????# # ""#??????????#??? | | ????#??###### ###### #!! T"###########???? | | ????????????# ##???# % #!! ""## = #???? | | ????????????# # ???# # ## "" #???? | | ????##??????# # ???# ###+#### "T ! #???? | | ??#?????????# #????# # "" #???? | | ????????????# #????# + #?#?? | | ????????????# # ]??# # """"" #???# | | ????????????# # # ############ """"" #???? | | ????????????+ k /uus#% #?????# """"" #???? | | ????????????# #? ? # s@m%t #?????# #???? | | ????????????# #????# *s#% #?????##########???? | | ???????????? ? u######??????#??????#????? | | ???????????? #???????????????????????? | | ????????????? ""r """ #??????????#????????????? | | ????????????? "Y """ #??????? ?????? ????????? | | ??????????????"" """ #????? ?????????????????? | | ?????????????? """ #???????? ??????????????? | | ????????????? ??"" ??????"??????#??????????? | | ????????????? ???? ???????? ???????????????? | | ????????????? ?????? ???????? ?#?????????????? | | ?????????????????????? ????????????????????????? | | ?????????????????????? ???#????????????????????? | | ?????????????????????? ????????????????????????? | | ?????????????????????? ????????????????????????? | | ?????????????????????????????????????????????????? | | ?????????????????????????????????????????????????? | | ?????????????????????????????????????????????????? | | ?????????????????????????????????????????????????? | | ?????????????????????????????????????????????????? | | ?????????????????????????????????????????????????? | | ?????????????????????????????????????????????????? | | ?????????????????????????????????????????????????? | | ?????????????????????????????????????????????????? | | ?????????????????????????????????????????????????? | +----------------------------------------------------+ Best States ------------- Heat Dissipation 25 Energy Generation 10 Energy Capacity 125 Matter Stores 300 Matter Capacity 300 Sight Range 16 Terrain Scan Range 16 Terrain Scan Density 10 Evasion (%) 55 Item Schematics ----------------- None Robot Schematics ------------------ None Fabricated ------------ Nothing Alien Tech Used ----------------- None Achievements -------------- None Challenges ------------ None Game ------ Seed PointyMolecularLoader Manual? 0 Play Time 00:04:14 Cumulative 29.0 hours Start 2024.11.13 @ 17:53:17 End 2024.11.13 @ 18:01:33 Sessions 1 Manual Loads 0 Difficulty Rogue Special Mode None Game No. 56 Rogue 56 Adventurer 0 Explorer 0 Win Type - Total 0 Types 0/0/0/0/0/0/0/0/0 Lore% 13 Gallery% 26 Achievement% 25 Wizard Run 0 Options --------- Layout 2 ASCII 0 Keyboard 1 Movement Numpad Keybinds 0 Fullscreen 1 Font 32/SmallcapsGlow Map View 50x44 Zoom Use 0% Tactical HUD 1 Map Filters NONE Filters NONE Steam 1 RUN: 92051304-b703-448d-9ffc-038f36d0c9e9